fUST/lending_fUST_20250120
["ID","MTS","AMOUNT","RATE_DAILY","PERIOD"]
[349667598,1737363068530,-500.0,0.00023013,3]
[349667599,1737363068540,-500.0,0.00023013,2]
[349667600,1737363068551,-801.81,0.00023013,3]
[349667601,1737363068561,-611.87,0.00023013,3]
[349667602,1737363068570,-702.35,0.00023013,3]
[349667603,1737363068579,-568.89,0.00023013,3]
[349667604,1737363068589,-705.02,0.00023013,3]
[349667605,1737363068598,-500.0,0.00023013,3]
[349667606,1737363068607,-500.0,0.00023013,3]
[349667607,1737363068616,-724.8,0.00023013,3]
[349667608,1737363068625,-500.0,0.00023013,3]
[349667609,1737363068636,-500.0,0.00023013,3]
[349667610,1737363068646,-500.0,0.00023013,3]
[349667611,1737363068656,-500.0,0.00023013,3]
[349667612,1737363068665,-500.0,0.00023013,3]
[349667613,1737363068675,-500.0,0.00023013,3]
[349667614,1737363068685,-500.0,0.00023013,3]
[349667615,1737363068696,-500.0,0.00023013,3]
[349667616,1737363068710,-695.6,0.00023013,3]
[349667617,1737363068720,-500.0,0.00023013,3]
[349667618,1737363068731,-500.0,0.00023013,3]
[349667619,1737363068741,-500.0,0.00023013,3]
[349667620,1737363068751,-555.03,0.00023013,3]
[349667621,1737363068761,-381.8488574,0.00023013,3]
[349667622,1737363068770,-500.0,0.00023013,3]
[349667623,1737363068779,-500.0,0.00023013,3]
[349667624,1737363068789,-500.0,0.00023013,3]
[349667625,1737363068799,-180.11,0.00023013,3]
[349667626,1737363068808,-1920.08,0.00023013,3]
[349667627,1737363068818,-500.0,0.00023013,3]
[349667628,1737363068827,-1764.79,0.00023013,2]
[349667629,1737363068837,-741.08,0.00023013,3]
[349667630,1737363068846,-500.0,0.00023013,3]
[349667631,1737363068857,-511.04060403,0.00023013,3]
[349667632,1737363068868,-801.63,0.00023013,3]
[349667633,1737363068877,-3357.16,0.00023013,3]
[349667634,1737363068887,-500.0,0.00023013,3]
[349667635,1737363068897,-3137.36,0.00023013,3]
[349667636,1737363068908,-500.0,0.00023013,3]
[349667637,1737363068918,-1224.43,0.00023013,3]
[349667638,1737363068927,-973.75,0.00023013,3]
[349667639,1737363068938,-1604.98,0.00023013,3]
[349667640,1737363068948,-624.08909257,0.00023013,3]
[349667641,1737363068958,-546.30428975,0.00023013,3]
[349667642,1737363068971,-500.0,0.00023013,3]
[349667643,1737363068981,-10290.31,0.00023013,3]
[349667644,1737363068992,-500.0,0.00023013,3]
[349667645,1737363069002,-500.0,0.00023013,3]
[349667646,1737363069012,-500.0,0.00023013,3]
[349667647,1737363069023,-1504.83,0.00023013,3]
[349667648,1737363069034,-500.0,0.00023013,3]
[349667649,1737363069043,-5310.12,0.00023013,3]
[349667650,1737363069052,-500.0,0.00023013,3]
[349667651,1737363069062,-9119.31,0.00023013,3]
[349667652,1737363069071,-623.93,0.00023013,3]
[349667653,1737363069081,-500.0,0.00023013,3]
[349667654,1737363069090,-500.0,0.00023013,3]
[349667655,1737363069100,-500.0,0.00023013,3]
[349667656,1737363069110,-500.0,0.00023013,3]
[349667657,1737363069121,-500.0,0.00023013,3]
[349667658,1737363069131,-1991.91,0.00023013,3]
[349667659,1737363069140,-500.0,0.00023013,3]
[349667660,1737363069149,-2278.86,0.00023013,3]
[349667661,1737363069160,-1608.79,0.00023013,3]
[349667662,1737363069169,-500.0,0.00023013,3]
[349667663,1737363069178,-513.88,0.00023013,3]
[349667664,1737363069190,-500.0,0.00023013,3]
[349667665,1737363069200,-500.0,0.00023013,3]
[349667666,1737363069210,-500.0,0.00023013,3]
[349667667,1737363069220,-500.0,0.00023013,3]
[349667668,1737363069229,-1571.57,0.00023013,3]
[349667669,1737363069240,-500.0,0.00023013,3]
[349667670,1737363069250,-500.0,0.00023013,3]
[349667671,1737363069260,-527.02,0.00023013,3]
[349667672,1737363069269,-5281.84,0.00023013,3]
[349667673,1737363069279,-500.0,0.00023013,3]
[349667674,1737363069288,-25872.62,0.00023013,3]
[349667675,1737363069298,-526.78,0.00023013,3]
[349667676,1737363069308,-564.99,0.00023013,3]
[349667677,1737363069317,-500.0,0.00023013,3]
[349667678,1737363069326,-1111.3,0.00023013,3]
[349667679,1737363069336,-500.0,0.00023013,3]
[349667680,1737363069345,-522.91,0.00023013,3]
[349667681,1737363069354,-8374.84,0.00023013,3]
[349667682,1737363069363,-262.9,0.00023016,7]
[349667683,1737363069373,-8568.01335492,0.00023111,2]
[349667684,1737363069382,-200.1544988,0.0002315,2]
[349667685,1737363069391,-500.0,0.0002315,2]
[349667686,1737363069400,-500.0,0.0002315,2]
[349667687,1737363069410,-500.0,0.0002315,3]
[349667688,1737363069419,-553.5240022,0.0002315,3]
[349667689,1737363069429,-462.76592858,0.0002315,3]
[349667690,1737363069439,-500.0,0.0002315,3]
[349667691,1737363069449,-255.88007257,0.0002315,3]
[349667692,1737363069458,-500.0,0.0002315,3]
[349667693,1737363069468,-500.0,0.0002315,3]
[349667694,1737363069479,-500.0,0.0002315,3]
[349667695,1737363069489,-1924.65,0.0002315,3]
[349667696,1737363069499,-500.0,0.0002315,3]
[349667697,1737363069507,-500.0,0.0002315,3]
[349667698,1737363069519,-500.0,0.0002315,3]
[349667699,1737363069529,-188.0,0.0002315,2]
[349667700,1737363069540,-500.0,0.0002315,3]
[349667701,1737363069550,-500.0,0.0002315,3]
[349667702,1737363069561,-500.0,0.0002315,2]
[349667703,1737363069571,-801.81,0.0002315,3]
[349667704,1737363069580,-611.87,0.0002315,3]
[349667705,1737363069589,-702.35,0.0002315,3]
[349667706,1737363069598,-568.89,0.0002315,3]
[349667707,1737363069608,-705.02,0.0002315,3]
[349667708,1737363069617,-500.0,0.0002315,3]
[349667709,1737363069627,-500.0,0.0002315,3]
[349667710,1737363069636,-724.8,0.0002315,3]
[349667711,1737363069647,-500.0,0.0002315,3]
[349667712,1737363069656,-500.0,0.0002315,3]
[349667713,1737363069666,-500.0,0.0002315,3]
[349667714,1737363069676,-500.0,0.0002315,3]
[349667715,1737363069686,-500.0,0.0002315,3]
[349667716,1737363069695,-500.0,0.0002315,3]
[349667717,1737363069705,-500.0,0.0002315,3]
[349667718,1737363069714,-500.0,0.0002315,3]
[349667719,1737363069724,-695.6,0.0002315,3]
[349667720,1737363069733,-500.0,0.0002315,3]
[349667721,1737363069743,-500.0,0.0002315,3]
[349667722,1737363069754,-500.0,0.0002315,3]
[349667723,1737363069764,-555.03,0.0002315,3]
[349667724,1737363069774,-500.0,0.0002315,3]
[349667725,1737363069796,-500.0,0.0002315,3]
[349667726,1737363069816,-500.0,0.0002315,3]
[349667727,1737363069825,-1920.08,0.0002315,3]
[349667728,1737363069835,-500.0,0.0002315,3]
[349667729,1737363069847,-1764.79,0.0002315,2]
[349667730,1737363069857,-741.08,0.0002315,3]
[349667731,1737363069867,-497.2675258,0.0002315,3]
[349667732,1737363069877,-801.63,0.0002315,3]
[349667733,1737363069886,-3357.16,0.0002315,3]
[349667734,1737363069896,-534.60938801,0.0002315,3]
[349667735,1737363069905,-3137.36,0.0002315,3]
[349667736,1737363069921,-500.0,0.0002315,3]
[349667737,1737363069938,-1224.43,0.0002315,3]
[349667738,1737363069948,-973.75,0.0002315,3]
[349667739,1737363069957,-1604.98,0.0002315,3]
[349667740,1737363069967,-500.0,0.0002315,3]
[349667741,1737363069977,-10290.31,0.0002315,3]
[349667742,1737363069986,-500.0,0.0002315,3]
[349667743,1737363069995,-500.0,0.0002315,3]
[349667744,1737363070005,-500.0,0.0002315,3]
[349667745,1737363070015,-1504.83,0.0002315,3]
[349667746,1737363070024,-500.0,0.0002315,3]
[349667747,1737363070034,-5310.12,0.0002315,3]
[349667748,1737363070044,-500.0,0.0002315,3]
[349667749,1737363070053,-9119.31,0.0002315,3]
[349667750,1737363070063,-623.93,0.0002315,3]
[349667751,1737363070210,-500.0,0.0002315,3]
[349667752,1737363070220,-500.0,0.0002315,3]
[349667753,1737363070231,-500.0,0.0002315,3]
[349667754,1737363070240,-212.19,0.0002315,3]
[349667755,1737363070250,-500.0,0.0002315,3]
[349667756,1737363070259,-1991.91,0.0002315,3]
[349667757,1737363070269,-500.0,0.0002315,3]
[349667758,1737363070279,-2278.86,0.0002315,3]
[349667759,1737363070288,-1608.79,0.0002315,3]
[349667760,1737363070298,-513.88,0.0002315,3]
[349667761,1737363070307,-500.0,0.0002315,3]
[349667762,1737363070317,-500.0,0.0002315,3]
[349667763,1737363070327,-500.0,0.0002315,3]
[349667764,1737363070337,-500.0,0.0002315,3]
[349667765,1737363070346,-1571.57,0.0002315,3]
[349667766,1737363070357,-500.0,0.0002315,3]
[349667767,1737363070366,-500.0,0.0002315,3]
[349667768,1737363070376,-527.02,0.0002315,3]
[349667769,1737363070385,-5281.84,0.0002315,3]
[349667770,1737363070395,-608.51296072,0.0002315,3]
[349667771,1737363070404,-25872.62,0.0002315,3]
[349667772,1737363070414,-526.78,0.0002315,3]
[349667773,1737363070423,-564.99,0.0002315,3]
[349667774,1737363070432,-500.0,0.0002315,3]
[349667775,1737363070444,-1111.3,0.0002315,3]
[349667776,1737363070454,-500.0,0.0002315,3]
[349667777,1737363070464,-8374.84,0.0002315,3]
[349667778,1737363070475,-156.621993,0.00023151,3]
[349667779,1737363070485,-4878.67711728,0.00023157,2]
[349667780,1737363070495,-627.73511595,0.00023157,2]
[349667781,1737363070504,-5000.0,0.00023172,7]
[349667782,1737363070515,-156.621993,0.00023178,2]
[349667783,1737363070524,-823538.91748209,0.000232,2]
[349667784,1737363070533,-37922.24191574,0.000232,2]
[349667785,1737363070542,-416.8,0.00023219,2]
[349667786,1737363070552,-262.9,0.00023221,7]
[349667787,1737363070562,-600.0,0.0002328,2]
[349667788,1737363070571,-332.82614942,0.00023287,3]
[349667789,1737363070581,-500.0,0.00023287,3]
[349667790,1737363070590,-575.23,0.00023287,3]
[349667791,1737363070599,-500.0,0.00023287,3]
[349667792,1737363070608,-500.0,0.00023287,3]
[349667793,1737363070617,-1924.65,0.00023287,3]
[349667794,1737363070626,-500.0,0.00023287,3]
[349667795,1737363070636,-400.71996421,0.00023287,3]
[349667796,1737363070645,-500.0,0.00023287,3]
[349667797,1737363070654,-188.0,0.00023287,2]
[349667798,1737363070664,-500.0,0.00023287,3]
[349667799,1737363070673,-500.0,0.00023287,3]
[349667800,1737363070682,-500.0,0.00023287,2]
[349667801,1737363070695,-801.81,0.00023287,3]
[349667802,1737363070705,-611.87,0.00023287,3]
[349667803,1737363070715,-702.35,0.00023287,3]
[349667804,1737363070724,-568.89,0.00023287,3]
[349667805,1737363070733,-705.02,0.00023287,3]
[349667806,1737363070743,-500.0,0.00023287,3]
[349667807,1737363070753,-500.0,0.00023287,3]
[349667808,1737363070762,-724.8,0.00023287,3]
[349667809,1737363070772,-500.0,0.00023287,3]
[349667810,1737363070781,-500.0,0.00023287,3]
[349667811,1737363070790,-500.0,0.00023287,3]
[349667812,1737363070800,-500.0,0.00023287,3]
[349667813,1737363070809,-500.0,0.00023287,3]
[349667814,1737363070819,-500.0,0.00023287,3]
[349667815,1737363070828,-500.0,0.00023287,3]
[349667816,1737363070838,-500.0,0.00023287,3]
[349667817,1737363070847,-695.6,0.00023287,3]
[349667818,1737363070857,-500.0,0.00023287,3]
[349667819,1737363070867,-539.37685581,0.00023287,3]
[349667820,1737363070877,-500.0,0.00023287,3]
[349667821,1737363070887,-555.03,0.00023287,3]
[349667822,1737363070898,-167.33665017,0.00023287,3]
[349667823,1737363070908,-500.0,0.00023287,3]
[349667824,1737363070918,-500.0,0.00023287,3]
[349667825,1737363070928,-1920.08,0.00023287,3]
[349667826,1737363070942,-303.9017255,0.00023287,3]
[349667827,1737363070953,-1764.79,0.00023287,2]
[349667828,1737363070963,-741.08,0.00023287,3]
[349667829,1737363070973,-801.63,0.00023287,3]
[349667830,1737363070983,-3357.16,0.00023287,3]
[349667831,1737363070992,-3137.36,0.00023287,3]
[349667832,1737363071003,-500.0,0.00023287,3]
[349667833,1737363071012,-1224.43,0.00023287,3]
[349667834,1737363071022,-973.75,0.00023287,3]
[349667835,1737363071032,-1604.98,0.00023287,3]
[349667836,1737363071042,-500.0,0.00023287,3]
[349667837,1737363071051,-10290.31,0.00023287,3]
[349667838,1737363071061,-500.0,0.00023287,3]
[349667839,1737363071070,-499.0,0.00023287,4]
[349667840,1737363071080,-500.0,0.00023287,3]
[349667841,1737363071089,-500.0,0.00023287,3]
[349667842,1737363071098,-1504.83,0.00023287,3]
[349667843,1737363071112,-182.68850033,0.00023287,3]
[349667844,1737363071121,-5310.12,0.00023287,3]
[349667845,1737363071131,-500.0,0.00023287,3]
[349667846,1737363071140,-9119.31,0.00023287,3]
[349667847,1737363071150,-623.93,0.00023287,3]
[349667848,1737363071160,-500.0,0.00023287,3]
[349667849,1737363071170,-500.0,0.00023287,3]
[349667850,1737363071180,-500.0,0.00023287,3]
[349667851,1737363071193,-1991.91,0.00023287,3]
[349667852,1737363071202,-500.0,0.00023287,3]
[349667853,1737363071212,-2278.86,0.00023287,3]
[349667854,1737363071222,-1608.79,0.00023287,3]
[349667855,1737363071232,-513.88,0.00023287,3]
[349667856,1737363071242,-500.0,0.00023287,3]
[349667857,1737363071252,-500.0,0.00023287,3]
[349667858,1737363071262,-500.0,0.00023287,3]
[349667859,1737363071272,-1571.57,0.00023287,3]
[349667860,1737363071281,-500.0,0.00023287,3]
[349667861,1737363071291,-500.0,0.00023287,3]
[349667862,1737363071301,-527.02,0.00023287,3]
[349667863,1737363071310,-5281.84,0.00023287,3]
[349667864,1737363071320,-25872.62,0.00023287,3]
[349667865,1737363071330,-526.78,0.00023287,3]
[349667866,1737363071339,-564.99,0.00023287,3]
[349667867,1737363071348,-500.0,0.00023287,3]
[349667868,1737363071357,-1111.3,0.00023287,3]
[349667869,1737363071367,-500.0,0.00023287,3]
[349667870,1737363071376,-8374.84,0.00023287,3]
[349667871,1737363071385,-21277.77,0.000233,2]
[349667872,1737363071395,-587.0,0.00023308,2]
[349667873,1737363071405,-1200.0,0.00023319,2]
[349667874,1737363071414,-3110.0,0.00023328,7]
[349667875,1737363071423,-4878.67711728,0.00023354,2]
[349667876,1737363071432,-8596.38,0.000234,14]
[349667877,1737363071444,-150.38802488,0.00023424,2]
[349667878,1737363071454,-500.0,0.00023424,2]
[349667879,1737363071463,-500.0,0.00023424,2]
[349667880,1737363071475,-500.0,0.00023424,3]
[349667881,1737363071486,-500.0,0.00023424,3]
[349667882,1737363071496,-500.0,0.00023424,3]
[349667883,1737363071505,-1924.65,0.00023424,3]
[349667884,1737363071515,-500.0,0.00023424,3]
[349667885,1737363071524,-500.0,0.00023424,3]
[349667886,1737363071533,-188.0,0.00023424,2]
[349667887,1737363071543,-500.0,0.00023424,3]
[349667888,1737363071552,-214.3,0.00023424,3]
[349667889,1737363071562,-500.0,0.00023424,2]
[349667890,1737363071572,-801.81,0.00023424,3]
[349667891,1737363071581,-611.87,0.00023424,3]
[349667892,1737363071591,-702.35,0.00023424,3]
[349667893,1737363071601,-568.89,0.00023424,3]
[349667894,1737363071610,-705.02,0.00023424,3]
[349667895,1737363071620,-500.0,0.00023424,3]
[349667896,1737363071629,-500.0,0.00023424,3]
[349667897,1737363071640,-724.8,0.00023424,3]
[349667898,1737363071649,-500.0,0.00023424,3]
[349667899,1737363071659,-500.0,0.00023424,3]
[349667900,1737363071668,-500.0,0.00023424,3]
[349667901,1737363071677,-500.0,0.00023424,3]
[349667902,1737363071689,-500.0,0.00023424,3]
[349667903,1737363071699,-500.0,0.00023424,3]
[349667904,1737363071709,-500.0,0.00023424,3]
[349667905,1737363071718,-500.0,0.00023424,3]
[349667906,1737363071728,-695.6,0.00023424,3]
[349667907,1737363071738,-500.0,0.00023424,3]
[349667908,1737363071748,-500.0,0.00023424,3]
[349667909,1737363071757,-555.03,0.00023424,3]
[349667910,1737363071767,-500.0,0.00023424,3]
[349667911,1737363071777,-500.0,0.00023424,3]
[349667912,1737363071787,-1920.08,0.00023424,3]
[349667913,1737363071796,-1764.79,0.00023424,2]
[349667914,1737363071806,-741.08,0.00023424,3]
[349667915,1737363071815,-801.63,0.00023424,3]
[349667916,1737363071824,-3357.16,0.00023424,3]
[349667917,1737363071834,-3137.36,0.00023424,3]
[349667918,1737363071844,-500.0,0.00023424,3]
[349667919,1737363071854,-1224.43,0.00023424,3]
[349667920,1737363071863,-973.75,0.00023424,3]
[349667921,1737363071872,-1604.98,0.00023424,3]
[349667922,1737363071882,-500.0,0.00023424,3]
[349667923,1737363071891,-10290.31,0.00023424,3]
[349667924,1737363071901,-500.0,0.00023424,3]
[349667925,1737363071910,-500.0,0.00023424,3]
[349667926,1737363071920,-1504.83,0.00023424,3]
[349667927,1737363071931,-5310.12,0.00023424,3]
[349667928,1737363071943,-579.33635728,0.00023424,3]
[349667929,1737363071953,-9119.31,0.00023424,3]
[349667930,1737363071963,-623.93,0.00023424,3]
[349667931,1737363071972,-500.0,0.00023424,3]
[349667932,1737363071981,-500.0,0.00023424,3]
[349667933,1737363071991,-1991.91,0.00023424,3]
[349667934,1737363072000,-500.0,0.00023424,3]
[349667935,1737363072010,-2278.86,0.00023424,3]
[349667936,1737363072019,-1608.79,0.00023424,3]
[349667937,1737363072028,-513.88,0.00023424,3]
[349667938,1737363072038,-500.0,0.00023424,3]
[349667939,1737363072047,-500.0,0.00023424,3]
[349667940,1737363072056,-500.0,0.00023424,3]
[349667941,1737363072066,-1571.57,0.00023424,3]
[349667942,1737363072076,-500.0,0.00023424,3]
[349667943,1737363072085,-500.0,0.00023424,3]
[349667944,1737363072095,-527.02,0.00023424,3]
[349667945,1737363072104,-5281.84,0.00023424,3]
[349667946,1737363072114,-25872.62,0.00023424,3]
[349667947,1737363072123,-526.78,0.00023424,3]
[349667948,1737363072133,-564.99,0.00023424,3]
[349667949,1737363072143,-506.48469102,0.00023424,3]
[349667950,1737363072153,-1111.3,0.00023424,3]
[349667951,1737363072163,-500.0,0.00023424,3]
[349667952,1737363072173,-8374.84,0.00023424,3]
[349667953,1737363072183,-1000.0,0.00023425,2]
[349667954,1737363072196,-1000.0,0.00023425,2]
[349667955,1737363072207,-156.621993,0.00023426,3]
[349667956,1737363072217,-262.9,0.00023427,7]
[349667957,1737363072226,-619.60744733,0.000235,2]
[349667958,1737363072236,-11816.12609964,0.000235,2]
[349667959,1737363072248,-16697.18832989,0.000235,2]
[349667960,1737363072262,-1500.0,0.00023522,2]
[349667961,1737363072271,-1500.0,0.00023522,2]
[349667962,1737363072282,-600.0,0.00023523,2]
[349667963,1737363072292,-4878.67711728,0.00023552,2]
[349667964,1737363072302,-500.0,0.00023561,3]
[349667965,1737363072311,-500.0,0.00023561,3]
[349667966,1737363072321,-500.0,0.00023561,3]
[349667967,1737363072330,-1924.65,0.00023561,3]
[349667968,1737363072340,-500.0,0.00023561,3]
[349667969,1737363072350,-500.0,0.00023561,3]
[349667970,1737363072360,-188.0,0.00023561,2]
[349667971,1737363072370,-500.0,0.00023561,3]
[349667972,1737363072379,-500.59595698,0.00023561,2]
[349667973,1737363072390,-801.81,0.00023561,3]
[349667974,1737363072407,-611.87,0.00023561,3]
[349667975,1737363072427,-702.35,0.00023561,3]
[349667976,1737363072444,-568.89,0.00023561,3]
[349667977,1737363072453,-705.02,0.00023561,3]
[349667978,1737363072463,-500.0,0.00023561,3]
[349667979,1737363072477,-500.0,0.00023561,3]
[349667980,1737363072487,-724.8,0.00023561,3]
[349667981,1737363072496,-500.0,0.00023561,3]
[349667982,1737363072506,-500.0,0.00023561,3]
[349667983,1737363072517,-500.0,0.00023561,3]
[349667984,1737363072527,-500.0,0.00023561,3]
[349667985,1737363072536,-187.90083906,0.00023561,3]
[349667986,1737363072545,-500.0,0.00023561,3]
[349667987,1737363072555,-500.0,0.00023561,3]
[349667988,1737363072565,-500.0,0.00023561,3]
[349667989,1737363072679,-695.6,0.00023561,3]
[349667990,1737363072691,-500.0,0.00023561,3]
[349667991,1737363072701,-500.0,0.00023561,3]
[349667992,1737363072711,-555.03,0.00023561,3]
[349667993,1737363072720,-500.0,0.00023561,3]
[349667994,1737363072729,-416.27924571,0.00023561,3]
[349667995,1737363072739,-1920.08,0.00023561,3]
[349667996,1737363072749,-1764.79,0.00023561,2]
[349667997,1737363072758,-741.08,0.00023561,3]
[349667998,1737363072768,-801.63,0.00023561,3]
[349667999,1737363072778,-3357.16,0.00023561,3]
[349668000,1737363072787,-3137.36,0.00023561,3]
[349668001,1737363072797,-500.0,0.00023561,3]
[349668002,1737363072807,-1224.43,0.00023561,3]
[349668003,1737363072816,-973.75,0.00023561,3]
[349668004,1737363072826,-1604.98,0.00023561,3]
[349668005,1737363072836,-10290.31,0.00023561,3]
[349668006,1737363072845,-500.0,0.00023561,3]
[349668007,1737363072855,-500.0,0.00023561,3]
[349668008,1737363072864,-1504.83,0.00023561,3]
[349668009,1737363072874,-5310.12,0.00023561,3]
[349668010,1737363072883,-9119.31,0.00023561,3]
[349668011,1737363072893,-623.93,0.00023561,3]
[349668012,1737363072902,-278.15841541,0.00023561,3]
[349668013,1737363072912,-500.0,0.00023561,3]
[349668014,1737363072922,-1991.91,0.00023561,3]
[349668015,1737363072931,-358.64,0.00023561,3]
[349668016,1737363072943,-2278.86,0.00023561,3]
[349668017,1737363072953,-1608.79,0.00023561,3]
[349668018,1737363072963,-513.88,0.00023561,3]
[349668019,1737363072972,-555.07660338,0.00023561,3]
[349668020,1737363072981,-500.0,0.00023561,3]
[349668021,1737363072991,-528.02669839,0.00023561,3]
[349668022,1737363073000,-1571.57,0.00023561,3]
[349668023,1737363073010,-500.0,0.00023561,3]
[349668024,1737363073020,-500.0,0.00023561,3]
[349668025,1737363073030,-527.02,0.00023561,3]
[349668026,1737363073040,-5281.84,0.00023561,3]
[349668027,1737363073050,-25872.62,0.00023561,3]
[349668028,1737363073059,-526.78,0.00023561,3]
[349668029,1737363073069,-564.99,0.00023561,3]
[349668030,1737363073079,-1111.3,0.00023561,3]
[349668031,1737363073089,-500.0,0.00023561,3]
[349668032,1737363073099,-8374.84,0.00023561,3]
[349668033,1737363073108,-156.621993,0.00023594,4]
[349668034,1737363073118,-300.0,0.000236,10]
[349668035,1737363073128,-498.6364064,0.00023622,2]
[349668036,1737363073138,-1500.0,0.00023622,2]
[349668037,1737363073147,-1500.0,0.00023622,2]
[349668038,1737363073156,-262.9,0.00023632,7]
[349668039,1737363073167,-627.73511595,0.00023651,2]
[349668040,1737363073176,-219.11025056,0.00023698,2]
[349668041,1737363073187,-211.45814382,0.00023698,2]
[349668042,1737363073198,-261.70973152,0.00023698,2]
[349668043,1737363073207,-151.24641573,0.00023698,2]
[349668044,1737363073217,-500.0,0.00023698,2]
[349668045,1737363073227,-500.0,0.00023698,2]
[349668046,1737363073237,-500.0,0.00023698,3]
[349668047,1737363073247,-500.0,0.00023698,3]
[349668048,1737363073257,-500.0,0.00023698,3]
[349668049,1737363073266,-1924.65,0.00023698,3]
[349668050,1737363073277,-500.0,0.00023698,3]
[349668051,1737363073287,-500.0,0.00023698,3]
[349668052,1737363073297,-333.1683189,0.00023698,2]
[349668053,1737363073307,-500.0,0.00023698,3]
[349668054,1737363073316,-801.81,0.00023698,3]
[349668055,1737363073326,-611.87,0.00023698,3]
[349668056,1737363073337,-702.35,0.00023698,3]
[349668057,1737363073347,-568.89,0.00023698,3]
[349668058,1737363073356,-705.02,0.00023698,3]
[349668059,1737363073366,-500.0,0.00023698,3]
[349668060,1737363073375,-500.0,0.00023698,3]
[349668061,1737363073386,-724.8,0.00023698,3]
[349668062,1737363073395,-500.0,0.00023698,3]
[349668063,1737363073406,-500.0,0.00023698,3]
[349668064,1737363073415,-500.0,0.00023698,3]
[349668065,1737363073424,-500.0,0.00023698,3]
[349668066,1737363073434,-500.0,0.00023698,3]
[349668067,1737363073448,-500.0,0.00023698,3]
[349668068,1737363073458,-500.0,0.00023698,3]
[349668069,1737363073468,-695.6,0.00023698,3]
[349668070,1737363073479,-500.0,0.00023698,3]
[349668071,1737363073490,-500.0,0.00023698,3]
[349668072,1737363073500,-555.03,0.00023698,3]
[349668073,1737363073509,-334.87,0.00023698,3]
[349668074,1737363073520,-1920.08,0.00023698,3]
[349668075,1737363073531,-1764.79,0.00023698,2]
[349668076,1737363073540,-741.08,0.00023698,3]
[349668077,1737363073550,-801.63,0.00023698,3]
[349668078,1737363073561,-3357.16,0.00023698,3]
[349668079,1737363073571,-3137.36,0.00023698,3]
[349668080,1737363073581,-500.0,0.00023698,3]
[349668081,1737363073591,-1224.43,0.00023698,3]
[349668082,1737363073601,-1350.77804859,0.00023698,3]
[349668083,1737363073610,-973.75,0.00023698,3]
[349668084,1737363073620,-1604.98,0.00023698,3]
[349668085,1737363073630,-10290.31,0.00023698,3]
[349668086,1737363073639,-500.0,0.00023698,3]
[349668087,1737363073649,-500.0,0.00023698,3]
[349668088,1737363073659,-1504.83,0.00023698,3]
[349668089,1737363073669,-5310.12,0.00023698,3]
[349668090,1737363073679,-9119.31,0.00023698,3]
[349668091,1737363073688,-623.93,0.00023698,3]
[349668092,1737363073700,-500.0,0.00023698,3]
[349668093,1737363073710,-1991.91,0.00023698,3]
[349668094,1737363073720,-2278.86,0.00023698,3]
[349668095,1737363073730,-1608.79,0.00023698,3]
[349668096,1737363073740,-513.88,0.00023698,3]
[349668097,1737363073750,-500.0,0.00023698,3]